fUST/lending_fUST_20260526
["ID","MTS","AMOUNT","RATE_DAILY","PERIOD"]
[423021274,1779761439000,-500.0,8.219e-05,2]
[423021281,1779761439000,-500.0,8.219e-05,2]
[423021283,1779761439000,-500.0,8.219e-05,2]
[423021282,1779761439000,-500.0,8.219e-05,2]
[423021284,1779761439000,-500.0,8.219e-05,2]
[423021290,1779761439000,-500.0,8.219e-05,2]
[423021285,1779761439000,-500.0,8.219e-05,2]
[423021286,1779761439000,-500.0,8.219e-05,2]
[423021289,1779761439000,-500.0,8.219e-05,2]
[423021291,1779761439000,-500.0,8.219e-05,2]
[423021287,1779761439000,-500.0,8.219e-05,2]
[423021288,1779761439000,-500.28346999,8.219e-05,2]
[423021292,1779761439000,-500.0,8.219e-05,2]
[423021295,1779761439000,-564.267,8.219e-05,2]
[423021322,1779761439000,-500.0,8.219e-05,2]
[423021329,1779761439000,-500.0,8.219e-05,2]
[423021321,1779761439000,-500.0,8.219e-05,2]
[423021350,1779761439000,-502.6424227,8.219e-05,2]
[423021356,1779761439000,-500.42132892,8.219e-05,2]
[423021359,1779761439000,-500.43350853,8.219e-05,2]
[423021362,1779761439000,-6860.388109,8.219e-05,2]
[423021357,1779761439000,-500.0,8.219e-05,2]
[423021358,1779761439000,-500.0,8.219e-05,2]
[423021360,1779761439000,-500.0,8.219e-05,2]
[423021363,1779761439000,-500.0,8.219e-05,2]
[423021361,1779761439000,-500.0,8.219e-05,2]
[423021367,1779761439000,-500.0,8.219e-05,2]
[423021372,1779761439000,-500.0,8.219e-05,2]
[423021374,1779761439000,-438.2251422,8.219e-05,2]
[423021369,1779761439000,-500.65334653,8.219e-05,2]
[423021376,1779761439000,-597.34,8.219e-05,2]
[423021375,1779761439000,-262.51738561,8.219e-05,2]
[423021366,1779761439000,-500.0,8.219e-05,2]
[423021365,1779761439000,-500.0,8.219e-05,2]
[423021368,1779761439000,-500.28126543,8.219e-05,2]
[423021377,1779761439000,-500.0,8.219e-05,2]
[423021380,1779761439000,-500.0,8.219e-05,2]
[423021379,1779761439000,-2791.436975,8.219e-05,2]
[423021325,1779761439000,-500.0,8.219e-05,2]
[423021383,1779761439000,-500.0,8.219e-05,2]
[423021381,1779761439000,-500.0,8.219e-05,2]
[423021378,1779761439000,-500.0,8.219e-05,2]
[423021354,1779761439000,-500.64461641,8.219e-05,2]
[423021352,1779761439000,-793.3,8.219e-05,2]
[423021382,1779761439000,-500.0,8.219e-05,2]
[423021353,1779761439000,-500.0,8.219e-05,2]
[423021351,1779761439000,-500.61879089,8.219e-05,2]
[423021327,1779761439000,-500.0,8.219e-05,2]
[423021326,1779761439000,-500.0,8.219e-05,2]
[423021324,1779761439000,-500.0,8.219e-05,2]
[423021328,1779761439000,-500.0,8.219e-05,2]
[423021330,1779761439000,-500.0,8.219e-05,2]
[423021331,1779761439000,-500.0,8.219e-05,2]
[423021333,1779761439000,-500.0,8.219e-05,2]
[423021336,1779761439000,-500.0,8.219e-05,2]
[423021334,1779761439000,-500.0,8.219e-05,2]
[423021339,1779761439000,-500.26360584,8.219e-05,2]
[423021342,1779761439000,-500.0,8.219e-05,2]
[423021338,1779761439000,-340.21511222,8.219e-05,2]
[423021323,1779761439000,-500.0,8.219e-05,2]
[423021340,1779761439000,-500.0,8.219e-05,2]
[423021332,1779761439000,-500.99438281,8.219e-05,2]
[423021347,1779761439000,-500.0,8.219e-05,2]
[423021355,1779761439000,-500.0,8.219e-05,2]
[423021346,1779761439000,-500.518524,8.219e-05,2]
[423021344,1779761439000,-500.44749407,8.219e-05,2]
[423021348,1779761439000,-500.16159871,8.219e-05,2]
[423021343,1779761439000,-500.0,8.219e-05,2]
[423021335,1779761439000,-500.94508014,8.219e-05,2]
[423021341,1779761439000,-500.0,8.219e-05,2]
[423021337,1779761439000,-500.0,8.219e-05,2]
[423021345,1779761439000,-500.70013333,8.219e-05,2]
[423021349,1779761439000,-500.0,8.219e-05,2]
[423021410,1779761440000,-500.0,8.219e-05,2]
[423021422,1779761440000,-500.0,8.219e-05,2]
[423021417,1779761440000,-500.0,8.219e-05,2]
[423021418,1779761440000,-500.0,8.219e-05,2]
[423021411,1779761440000,-500.0,8.219e-05,2]
[423021414,1779761440000,-500.0,8.219e-05,2]
[423021413,1779761440000,-500.0,8.219e-05,2]
[423021416,1779761440000,-500.0,8.219e-05,2]
[423021419,1779761440000,-500.0,8.219e-05,2]
[423021420,1779761440000,-500.0,8.219e-05,2]
[423021425,1779761440000,-500.0,8.219e-05,2]
[423021424,1779761440000,-500.0,8.219e-05,2]
[423021427,1779761440000,-500.0,8.219e-05,2]
[423021428,1779761440000,-500.0,8.219e-05,2]
[423021426,1779761440000,-500.0,8.219e-05,2]
[423021429,1779761440000,-500.0,8.219e-05,2]
[423021432,1779761440000,-500.25556181,8.219e-05,2]
[423021430,1779761440000,-500.0,8.219e-05,2]
[423021438,1779761440000,-576.75504074,8.219e-05,2]
[423021439,1779761440000,-500.0,8.219e-05,2]
[423021408,1779761440000,-1223.94,8.219e-05,2]
[423021421,1779761440000,-500.06814912,8.219e-05,2]
[423021412,1779761440000,-500.0,8.219e-05,2]
[423021392,1779761440000,-500.4350178,8.219e-05,2]
[423021406,1779761440000,-500.0,8.219e-05,2]
[423021436,1779761440000,-500.0,8.219e-05,2]
[423021385,1779761440000,-861.5694,8.219e-05,2]
[423021384,1779761440000,-500.0,8.219e-05,2]
[423021386,1779761440000,-500.98623983,8.219e-05,2]
[423021388,1779761440000,-500.0,8.219e-05,2]
[423021391,1779761440000,-500.0,8.219e-05,2]
[423021397,1779761440000,-500.21798976,8.219e-05,2]
[423021394,1779761440000,-500.54496121,8.219e-05,2]
[423021389,1779761440000,-500.0,8.219e-05,2]
[423021393,1779761440000,-500.0,8.219e-05,2]
[423021409,1779761440000,-500.0,8.219e-05,2]
[423021395,1779761440000,-500.0,8.219e-05,2]
[423021396,1779761440000,-186.14130619,8.219e-05,2]
[423021399,1779761440000,-500.0,8.219e-05,2]
[423021398,1779761440000,-500.0,8.219e-05,2]
[423021407,1779761440000,-500.0,8.219e-05,2]
[423021404,1779761440000,-500.0,8.219e-05,2]
[423021405,1779761440000,-500.0,8.219e-05,2]
[423021403,1779761440000,-500.88511964,8.219e-05,2]
[423021402,1779761440000,-500.60386454,8.219e-05,2]
[423021401,1779761440000,-500.0,8.219e-05,2]
[423021400,1779761440000,-495.26390884,8.219e-05,2]
[423021390,1779761440000,-500.0,8.219e-05,2]
[423021433,1779761440000,-500.0,8.219e-05,2]
[423021423,1779761440000,-500.0,8.219e-05,2]
[423021431,1779761440000,-500.0,8.219e-05,2]
[423021468,1779761440000,-500.0,8.219e-05,2]
[423021469,1779761440000,-500.0,8.219e-05,2]
[423021463,1779761440000,-500.0,8.219e-05,2]
[423021471,1779761440000,-500.0,8.219e-05,2]
[423021476,1779761440000,-500.0,8.219e-05,2]
[423021472,1779761440000,-500.0,8.219e-05,2]
[423021470,1779761440000,-500.42240124,8.219e-05,2]
[423021473,1779761440000,-500.0,8.219e-05,2]
[423021475,1779761440000,-500.0,8.219e-05,2]
[423021480,1779761440000,-500.0,8.219e-05,2]
[423021467,1779761440000,-500.0,8.219e-05,2]
[423021477,1779761440000,-500.75489992,8.219e-05,2]
[423021474,1779761440000,-500.0,8.219e-05,2]
[423021482,1779761440000,-500.0,8.219e-05,2]
[423021483,1779761440000,-500.23216192,8.219e-05,2]
[423021481,1779761440000,-500.0,8.219e-05,2]
[423021485,1779761440000,-500.0,8.219e-05,2]
[423021487,1779761440000,-500.46681309,8.219e-05,2]
[423021486,1779761440000,-500.0,8.219e-05,2]
[423021488,1779761440000,-500.0,8.219e-05,2]
[423021484,1779761440000,-500.0,8.219e-05,2]
[423021434,1779761440000,-612.93881866,8.219e-05,2]
[423021478,1779761440000,-424.80393834,8.219e-05,2]
[423021466,1779761440000,-500.44928669,8.219e-05,2]
[423021479,1779761440000,-500.5918783,8.219e-05,2]
[423021465,1779761440000,-533.16933394,8.219e-05,2]
[423021464,1779761440000,-500.47834663,8.219e-05,2]
[423021435,1779761440000,-167.42605146,8.219e-05,2]
[423021437,1779761440000,-500.0,8.219e-05,2]
[423021441,1779761440000,-500.0,8.219e-05,2]
[423021440,1779761440000,-500.0,8.219e-05,2]
[423021442,1779761440000,-500.0,8.219e-05,2]
[423021450,1779761440000,-500.0,8.219e-05,2]
[423021444,1779761440000,-500.61407105,8.219e-05,2]
[423021448,1779761440000,-161.85535625,8.219e-05,2]
[423021446,1779761440000,-500.0,8.219e-05,2]
[423021447,1779761440000,-500.0,8.219e-05,2]
[423021443,1779761440000,-500.0,8.219e-05,2]
[423021453,1779761440000,-500.0,8.219e-05,2]
[423021462,1779761440000,-500.0,8.219e-05,2]
[423021445,1779761440000,-500.0,8.219e-05,2]
[423021461,1779761440000,-778.47,8.219e-05,2]
[423021460,1779761440000,-500.28548071,8.219e-05,2]
[423021458,1779761440000,-500.0,8.219e-05,2]
[423021457,1779761440000,-500.0,8.219e-05,2]
[423021459,1779761440000,-651.45,8.219e-05,2]
[423021455,1779761440000,-487.42239666,8.219e-05,2]
[423021454,1779761440000,-500.19246742,8.219e-05,2]
[423021452,1779761440000,-500.0,8.219e-05,2]
[423021489,1779761440000,-500.0,8.219e-05,2]
[423021524,1779761441000,-500.0,8.219e-05,2]
[423021521,1779761441000,-500.0,8.219e-05,2]
[423021536,1779761441000,-500.2485618,8.219e-05,2]
[423021525,1779761441000,-500.54291492,8.219e-05,2]
[423021532,1779761441000,-647.05483344,8.219e-05,2]
[423021522,1779761441000,-500.49100043,8.219e-05,2]
[423021520,1779761441000,-500.0,8.219e-05,2]
[423021523,1779761441000,-500.30161949,8.219e-05,2]
[423021526,1779761441000,-500.0,8.219e-05,2]
[423021528,1779761441000,-500.0,8.219e-05,2]
[423021534,1779761441000,-500.0,8.219e-05,2]
[423021518,1779761441000,-500.0,8.219e-05,2]
[423021527,1779761441000,-500.0,8.219e-05,2]
[423021535,1779761441000,-500.4049982,8.219e-05,2]
[423021551,1779761441000,-500.52955755,8.219e-05,2]
[423021539,1779761441000,-500.0,8.219e-05,2]
[423021543,1779761441000,-500.36409676,8.219e-05,2]
[423021533,1779761441000,-500.0,8.219e-05,2]
[423021538,1779761441000,-548.14171855,8.219e-05,2]
[423021540,1779761441000,-500.0,8.219e-05,2]
[423021542,1779761441000,-500.50841654,8.219e-05,2]
[423021541,1779761441000,-500.0,8.219e-05,2]
[423021545,1779761441000,-500.0,8.219e-05,2]
[423021554,1779761441000,-500.24919795,8.219e-05,2]
[423021544,1779761441000,-500.0,8.219e-05,2]
[423021546,1779761441000,-500.0,8.219e-05,2]
[423021550,1779761441000,-646.0572411,8.219e-05,2]
[423021531,1779761441000,-500.0,8.219e-05,2]
[423021537,1779761441000,-500.0,8.219e-05,2]
[423021530,1779761441000,-500.27065003,8.219e-05,2]
[423021505,1779761441000,-501.04475872,8.219e-05,2]
[423021519,1779761441000,-500.0,8.219e-05,2]
[423021492,1779761441000,-500.0,8.219e-05,2]
[423021493,1779761441000,-501.04471608,8.219e-05,2]
[423021491,1779761441000,-500.59614749,8.219e-05,2]
[423021490,1779761441000,-535.59903171,8.219e-05,2]
[423021495,1779761441000,-500.16053529,8.219e-05,2]
[423021547,1779761441000,-500.66801687,8.219e-05,2]
[423021494,1779761441000,-500.0,8.219e-05,2]
[423021497,1779761441000,-562.92116838,8.219e-05,2]
[423021503,1779761441000,-500.0,8.219e-05,2]
[423021501,1779761441000,-500.0,8.219e-05,2]
[423021496,1779761441000,-500.0,8.219e-05,2]
[423021498,1779761441000,-500.0,8.219e-05,2]
[423021502,1779761441000,-500.0,8.219e-05,2]
[423021529,1779761441000,-500.0,8.219e-05,2]
[423021500,1779761441000,-500.0,8.219e-05,2]
[423021504,1779761441000,-500.0,8.219e-05,2]
[423021506,1779761441000,-500.0,8.219e-05,2]
[423021507,1779761441000,-500.0,8.219e-05,2]
[423021508,1779761441000,-500.0,8.219e-05,2]
[423021509,1779761441000,-500.0,8.219e-05,2]
[423021510,1779761441000,-500.0,8.219e-05,2]
[423021511,1779761441000,-500.28853169,8.219e-05,2]
[423021517,1779761441000,-500.0,8.219e-05,2]
[423021513,1779761441000,-500.33161048,8.219e-05,2]
[423021515,1779761441000,-500.46547353,8.219e-05,2]
[423021512,1779761441000,-500.0,8.219e-05,2]
[423021514,1779761441000,-500.0,8.219e-05,2]
[423021516,1779761441000,-500.0,8.219e-05,2]
[423021499,1779761441000,-505.08936809,8.219e-05,2]
[423021552,1779761441000,-500.0,8.219e-05,2]
[423021555,1779761441000,-501.00883204,8.219e-05,2]
[423021553,1779761441000,-500.55977849,8.219e-05,2]
[423021589,1779761441000,-1941.82,8.219e-05,2]
[423021585,1779761441000,-500.71157155,8.219e-05,2]
[423021590,1779761441000,-500.0,8.219e-05,2]
[423021591,1779761441000,-639.88,8.219e-05,2]
[423021595,1779761441000,-1278.55,8.219e-05,2]
[423021592,1779761441000,-500.0,8.219e-05,2]
[423021593,1779761441000,-500.0,8.219e-05,2]
[423021594,1779761441000,-500.0,8.219e-05,2]
[423021596,1779761441000,-500.0,8.219e-05,2]
[423021597,1779761441000,-500.0,8.219e-05,2]
[423021599,1779761441000,-500.0,8.219e-05,2]
[423021598,1779761441000,-500.0,8.219e-05,2]
[423021603,1779761441000,-500.0,8.219e-05,2]
[423021609,1779761441000,-500.0,8.219e-05,2]
[423021607,1779761441000,-224.71624763,8.219e-05,2]
[423021600,1779761441000,-900.0,8.219e-05,2]
[423021602,1779761441000,-500.0,8.219e-05,2]
[423021606,1779761441000,-500.0,8.219e-05,2]
[423021601,1779761441000,-500.0,8.219e-05,2]
[423021608,1779761441000,-157.04034607,8.219e-05,2]
[423021605,1779761441000,-151.5,8.219e-05,2]
[423021604,1779761441000,-500.85609991,8.219e-05,2]
[423021610,1779761441000,-500.0,8.219e-05,2]
[423021612,1779761441000,-501.33649124,8.219e-05,2]
[423021611,1779761441000,-500.0,8.219e-05,2]
[423021614,1779761441000,-500.0,8.219e-05,2]
[423021613,1779761441000,-500.0,8.219e-05,2]
[423021615,1779761441000,-530.25121226,8.219e-05,2]
[423021549,1779761441000,-501.08045567,8.219e-05,2]
[423021586,1779761441000,-500.95454521,8.219e-05,2]
[423021588,1779761441000,-501.58243536,8.219e-05,2]
[423021616,1779761441000,-503.81931089,8.219e-05,2]
[423021587,1779761441000,-500.54349791,8.219e-05,2]
[423021583,1779761441000,-500.0,8.219e-05,2]
[423021556,1779761441000,-500.0,8.219e-05,2]
[423021558,1779761441000,-500.0,8.219e-05,2]
[423021559,1779761441000,-500.0,8.219e-05,2]
[423021560,1779761441000,-500.0,8.219e-05,2]
[423021557,1779761441000,-500.79926745,8.219e-05,2]
[423021563,1779761441000,-500.0,8.219e-05,2]
[423021561,1779761441000,-500.0,8.219e-05,2]
[423021562,1779761441000,-500.99274955,8.219e-05,2]
[423021564,1779761441000,-500.0,8.219e-05,2]
[423021565,1779761441000,-500.0,8.219e-05,2]
[423021566,1779761441000,-500.0,8.219e-05,2]
[423021567,1779761441000,-1008.31,8.219e-05,2]
[423021568,1779761441000,-1001.06022028,8.219e-05,2]
[423021548,1779761441000,-500.5454891,8.219e-05,2]
[423021570,1779761441000,-1046.45,8.219e-05,2]
[423021569,1779761441000,-500.0,8.219e-05,2]
[423021579,1779761441000,-500.24418143,8.219e-05,2]
[423021578,1779761441000,-554.49836399,8.219e-05,2]
[423021580,1779761441000,-500.0,8.219e-05,2]
[423021575,1779761441000,-719.79,8.219e-05,2]
[423021577,1779761441000,-235.88790761,8.219e-05,2]
[423021584,1779761441000,-500.64389439,8.219e-05,2]
[423021576,1779761441000,-500.0,8.219e-05,2]
[423021573,1779761441000,-500.19135158,8.219e-05,2]
[423021582,1779761441000,-500.92896811,8.219e-05,2]
[423021571,1779761441000,-500.53554513,8.219e-05,2]
[423021581,1779761441000,-3268.63,8.219e-05,2]
[423021572,1779761441000,-500.0,8.219e-05,2]
[423021574,1779761441000,-501.46222507,8.219e-05,2]
[423021655,1779761442000,-500.59545743,8.219e-05,2]
[423021652,1779761442000,-921.17,8.219e-05,2]
[423021660,1779761442000,-828.07,8.219e-05,2]
[423021658,1779761442000,-500.88178795,8.219e-05,2]
[423021654,1779761442000,-501.04255302,8.219e-05,2]
[423021651,1779761442000,-500.0,8.219e-05,2]
[423021657,1779761442000,-2395.51,8.219e-05,2]
[423021659,1779761442000,-500.75275145,8.219e-05,2]
[423021653,1779761442000,-500.0,8.219e-05,2]
[423021650,1779761442000,-500.45450201,8.219e-05,2]
[423021662,1779761442000,-183.1144073,8.219e-05,2]
[423021661,1779761442000,-500.0,8.219e-05,2]
[423021656,1779761442000,-505.91115447,8.219e-05,2]
[423021664,1779761442000,-500.0,8.219e-05,2]
[423021671,1779761442000,-1273.71,8.219e-05,2]
[423021673,1779761442000,-522.09928482,8.219e-05,2]
[423021663,1779761442000,-500.0,8.219e-05,2]
[423021672,1779761442000,-725.57,8.219e-05,2]
[423021667,1779761442000,-500.0,8.219e-05,2]
[423021668,1779761442000,-500.0,8.219e-05,2]
[423021670,1779761442000,-500.0,8.219e-05,2]
[423021666,1779761442000,-4003.88,8.219e-05,2]
[423021675,1779761442000,-500.0,8.219e-05,2]
[423021677,1779761442000,-593.54,8.219e-05,2]
[423021687,1779761442000,-500.35115407,8.219e-05,2]
[423021689,1779761442000,-174.11140613,8.219e-05,2]
[423021688,1779761442000,-500.0,8.219e-05,2]
[423021643,1779761442000,-501.57128687,8.219e-05,2]
[423021680,1779761442000,-500.0,8.219e-05,2]
[423021665,1779761442000,-500.37881113,8.219e-05,2]
[423021639,1779761442000,-500.0,8.219e-05,2]
[423021632,1779761442000,-500.0,8.219e-05,2]
[423021645,1779761442000,-500.57485899,8.219e-05,2]
[423021679,1779761442000,-500.0,8.219e-05,2]
[423021617,1779761442000,-500.0,8.219e-05,2]
[423021618,1779761442000,-500.38151658,8.219e-05,2]
[423021620,1779761442000,-500.0,8.219e-05,2]
[423021622,1779761442000,-2191.2,8.219e-05,2]
[423021619,1779761442000,-500.0,8.219e-05,2]
[423021621,1779761442000,-571.87,8.219e-05,2]
[423021634,1779761442000,-1065.8,8.219e-05,2]
[423021625,1779761442000,-1294.75,8.219e-05,2]
[423021635,1779761442000,-500.0,8.219e-05,2]
[423021628,1779761442000,-963.75,8.219e-05,2]
[423021624,1779761442000,-500.0,8.219e-05,2]
[423021626,1779761442000,-501.75978161,8.219e-05,2]
[423021627,1779761442000,-962.38,8.219e-05,2]
[423021623,1779761442000,-500.45622406,8.219e-05,2]
[423021633,1779761442000,-500.22660401,8.219e-05,2]
[423021629,1779761442000,-500.0,8.219e-05,2]
[423021630,1779761442000,-811.18,8.219e-05,2]
[423021631,1779761442000,-500.5916192,8.219e-05,2]
[423021638,1779761442000,-500.0,8.219e-05,2]
[423021648,1779761442000,-500.0,8.219e-05,2]
[423021636,1779761442000,-500.32890451,8.219e-05,2]
[423021637,1779761442000,-500.49115145,8.219e-05,2]
[423021647,1779761442000,-546.85381814,8.219e-05,2]
[423021649,1779761442000,-500.53341659,8.219e-05,2]
[423021640,1779761442000,-1477.58,8.219e-05,2]
[423021646,1779761442000,-3982.73,8.219e-05,2]
[423021642,1779761442000,-500.37628263,8.219e-05,2]
[423021641,1779761442000,-2277.42,8.219e-05,2]
[423021644,1779761442000,-199.16722832,8.219e-05,2]
[423021681,1779761442000,-501.18786156,8.219e-05,2]
[423021738,1779761442000,-500.0,8.493e-05,2]
[423021682,1779761442000,-500.0,8.219e-05,2]
[423021729,1779761442000,-500.0,8.219e-05,2]
[423021725,1779761442000,-500.0,8.219e-05,2]
[423021727,1779761442000,-500.0,8.219e-05,2]
[423021722,1779761442000,-500.0,8.219e-05,2]
[423021724,1779761442000,-500.0,8.219e-05,2]
[423021721,1779761442000,-380.10388018,8.219e-05,2]
[423021726,1779761442000,-500.0,8.219e-05,2]
[423021723,1779761442000,-500.0,8.219e-05,2]
[423021718,1779761442000,-500.0,8.219e-05,2]
[423021730,1779761442000,-628.92,8.219e-05,2]
[423021728,1779761442000,-500.0,8.219e-05,2]
[423021732,1779761442000,-500.0,8.219e-05,2]
[423021733,1779761442000,-500.0,8.273e-05,2]
[423021731,1779761442000,-16526.87,8.219e-05,2]
[423021742,1779761442000,-502.03680563,8.493e-05,2]
[423021743,1779761442000,-500.96895082,8.493e-05,2]
[423021736,1779761442000,-7776.1804559,8.493e-05,2]
[423021741,1779761442000,-500.0,8.493e-05,2]
[423021739,1779761442000,-500.0,8.493e-05,2]
[423021735,1779761442000,-537.6845,8.273e-05,2]
[423021737,1779761442000,-677.5676,8.493e-05,2]
[423021734,1779761442000,-162.87954581,8.273e-05,2]
[423021740,1779761442000,-500.0,8.493e-05,2]
[423021745,1779761442000,-502.47791097,8.493e-05,2]
[423021746,1779761442000,-500.0,8.493e-05,2]
[423021748,1779761442000,-500.7025283,8.493e-05,2]
[423021751,1779761442000,-500.52806157,8.493e-05,2]
[423021683,1779761442000,-500.0,8.219e-05,2]
[423021753,1779761442000,-500.0,8.493e-05,2]
[423021720,1779761442000,-500.0,8.219e-05,2]
[423021719,1779761442000,-578.57584287,8.219e-05,2]
[423021749,1779761442000,-500.43791427,8.493e-05,2]
[423021713,1779761442000,-519.65,8.219e-05,2]
[423021717,1779761442000,-501.37548843,8.219e-05,2]
[423021686,1779761442000,-1811.76,8.219e-05,2]
[423021685,1779761442000,-500.0,8.219e-05,2]
[423021691,1779761442000,-500.0,8.219e-05,2]
[423021701,1779761442000,-500.67638993,8.219e-05,2]
[423021702,1779761442000,-500.0,8.219e-05,2]
[423021703,1779761442000,-1396.31,8.219e-05,2]
[423021695,1779761442000,-203.09897814,8.219e-05,2]
[423021692,1779761442000,-500.0,8.219e-05,2]
[423021694,1779761442000,-308.402144,8.219e-05,2]
[423021697,1779761442000,-817.36,8.219e-05,2]
[423021693,1779761442000,-705.41,8.219e-05,2]
[423021690,1779761442000,-502.46566416,8.219e-05,2]
[423021696,1779761442000,-500.60591388,8.219e-05,2]
[423021684,1779761442000,-500.52365278,8.219e-05,2]
[423021700,1779761442000,-501.13330581,8.219e-05,2]
[423021710,1779761442000,-500.44831569,8.219e-05,2]
[423021714,1779761442000,-500.0,8.219e-05,2]
[423021709,1779761442000,-500.0,8.219e-05,2]
[423021711,1779761442000,-1520.37,8.219e-05,2]
[423021712,1779761442000,-501.27302578,8.219e-05,2]
[423021699,1779761442000,-209.83294997,8.219e-05,2]
[423021706,1779761442000,-500.0,8.219e-05,2]
[423021707,1779761442000,-500.93208102,8.219e-05,2]
[423021708,1779761442000,-500.0,8.219e-05,2]
[423021715,1779761442000,-843.35,8.219e-05,2]
[423021704,1779761442000,-500.0,8.219e-05,2]
[423021705,1779761442000,-500.38439688,8.219e-05,2]
[423021698,1779761442000,-500.90143777,8.219e-05,2]
[423021716,1779761442000,-500.48382647,8.219e-05,2]
[423021802,1779761443000,-501.07203919,8.493e-05,2]
[423021807,1779761443000,-500.0,8.493e-05,2]
[423021806,1779761443000,-479.75184128,8.493e-05,2]
[423021796,1779761443000,-502.11959886,8.493e-05,2]
[423021793,1779761443000,-500.0,8.493e-05,2]
[423021787,1779761443000,-500.65255913,8.493e-05,2]
[423021792,1779761443000,-500.0,8.493e-05,2]
[423021791,1779761443000,-503.35687487,8.493e-05,2]
[423021789,1779761443000,-500.0,8.493e-05,2]
[423021790,1779761443000,-500.72462293,8.493e-05,2]
[423021786,1779761443000,-500.93814398,8.493e-05,2]
[423021794,1779761443000,-500.0,8.493e-05,2]
[423021797,1779761443000,-500.0,8.493e-05,2]
[423021805,1779761443000,-500.69538837,8.493e-05,2]
[423021801,1779761443000,-550.35465854,8.493e-05,2]
[423021799,1779761443000,-445.74038047,8.493e-05,2]
[423021809,1779761443000,-501.0891325,8.493e-05,2]
[423021798,1779761443000,-500.0,8.493e-05,2]
[423021803,1779761443000,-500.0,8.493e-05,2]
[423021804,1779761443000,-500.50362066,8.493e-05,2]
[423021812,1779761443000,-501.3475243,8.493e-05,2]
[423021815,1779761443000,-793.3,8.493e-05,2]
[423021813,1779761443000,-500.0,8.493e-05,2]
[423021816,1779761443000,-501.07860062,8.493e-05,2]
[423021818,1779761443000,-500.0,8.493e-05,2]
[423021788,1779761443000,-1114.43,8.493e-05,2]
[423021814,1779761443000,-501.09800581,8.493e-05,2]
[423021795,1779761443000,-500.0,8.493e-05,2]
[423021777,1779761443000,-502.83020178,8.493e-05,2]
[423021766,1779761443000,-500.0,8.493e-05,2]
[423021781,1779761443000,-502.033757,8.493e-05,2]
[423021811,1779761443000,-500.0,8.493e-05,2]
[423021755,1779761443000,-500.0,8.493e-05,2]
[423021756,1779761443000,-501.04016821,8.493e-05,2]
[423021758,1779761443000,-500.0,8.493e-05,2]
[423021757,1779761443000,-500.0,8.493e-05,2]
[423021760,1779761443000,-501.62557746,8.493e-05,2]
[423021759,1779761443000,-500.58861756,8.493e-05,2]
[423021762,1779761443000,-501.24437322,8.493e-05,2]
[423021761,1779761443000,-500.48772698,8.493e-05,2]
[423021764,1779761443000,-500.0,8.493e-05,2]
[423021774,1779761443000,-500.8414419,8.493e-05,2]
[423021775,1779761443000,-508.53,8.493e-05,2]
[423021765,1779761443000,-506.92054319,8.493e-05,2]
[423021785,1779761443000,-500.74178242,8.493e-05,2]
[423021763,1779761443000,-500.0,8.493e-05,2]
[423021773,1779761443000,-502.81715795,8.493e-05,2]
[423021769,1779761443000,-500.0,8.493e-05,2]
[423021771,1779761443000,-500.0,8.493e-05,2]
[423021772,1779761443000,-1542.7385,8.493e-05,2]
[423021767,1779761443000,-633.53714738,8.493e-05,2]
[423021770,1779761443000,-500.0,8.493e-05,2]
[423021776,1779761443000,-500.0,8.493e-05,2]
[423021778,1779761443000,-500.0,8.493e-05,2]
[423021780,1779761443000,-500.62407722,8.493e-05,2]
[423021783,1779761443000,-500.0,8.493e-05,2]
[423021784,1779761443000,-500.53400338,8.493e-05,2]
[423021782,1779761443000,-501.88478548,8.493e-05,2]
[423021779,1779761443000,-500.0,8.493e-05,2]
[423021768,1779761443000,-500.39662094,8.493e-05,2]
[423021822,1779761443000,-500.2778074,8.493e-05,2]
[423021884,1779761443000,-500.0,8.493e-05,2]
[423021821,1779761443000,-501.39046815,8.493e-05,2]
[423021854,1779761443000,-500.0,8.493e-05,2]
[423021856,1779761443000,-500.0,8.493e-05,2]
[423021857,1779761443000,-500.0,8.493e-05,2]
[423021866,1779761443000,-500.0,8.493e-05,2]
[423021863,1779761443000,-500.0,8.493e-05,2]
[423021864,1779761443000,-500.0,8.493e-05,2]
[423021860,1779761443000,-500.0,8.493e-05,2]